[Event "*** Titled Tuesday Blitz"]
[Site "Chess.com"]
[Date "2020.11.24"]
[Round "3"]
[White "dpopadic"]
[Black "crazy_but_lazy"]
[Result "0-1"]
[WhiteElo "2330"]
[BlackElo "2445"]
[TimeControl "180+1"]
[EndTime "10:45:41 PST"]
[Termination "crazy_but_lazy won on time"]

1. e4 {[%clk 0:03:00.9]} 1... e6 {[%clk 0:02:58.4]} 2. Nf3 {[%clk 0:02:59.8]}
2... d5 {[%clk 0:02:55.5]} 3. e5 {[%clk 0:02:59.1]} 3... c5 {[%clk 0:02:41.8]}
4. b4 {[%clk 0:02:58.2]} 4... cxb4 {[%clk 0:02:38.9]} 5. d4 {[%clk 0:02:57.6]}
5... Nc6 {[%clk 0:02:38.1]} 6. a3 {[%clk 0:02:57.4]} 6... bxa3 {[%clk 0:02:28]}
7. c3 {[%clk 0:02:56.8]} 7... Nge7 {[%clk 0:02:20.2]} 8. Bd3 {[%clk 0:02:52.8]}
8... Bd7 {[%clk 0:02:17.1]} 9. Nxa3 {[%clk 0:02:51.5]} 9... a6 {[%clk 0:02:16]}
10. O-O {[%clk 0:02:49]} 10... Nc8 {[%clk 0:02:08.4]} 11. Ng5 {[%clk 0:02:43.5]}
11... g6 {[%clk 0:02:00.9]} 12. Qf3 {[%clk 0:02:34.7]} 12... Qe7 {[%clk
0:01:58.1]} 13. Nc2 {[%clk 0:02:28.7]} 13... h6 {[%clk 0:01:46.1]} 14. Nh3
{[%clk 0:02:27.5]} 14... Nb6 {[%clk 0:01:26]} 15. Nf4 {[%clk 0:02:21.4]} 15...
O-O-O {[%clk 0:01:21.1]} 16. Qe2 {[%clk 0:02:15.6]} 16... Kc7 {[%clk 0:01:15.2]}
17. Ba3 {[%clk 0:02:00.6]} 17... Qg5 {[%clk 0:01:13.1]} 18. Bc1 {[%clk
0:01:52.4]} 18... Qe7 {[%clk 0:01:08.3]} 19. Rb1 {[%clk 0:01:50.8]} 19... Na5
{[%clk 0:01:03.9]} 20. Ba3 {[%clk 0:01:44.5]} 20... Qg5 {[%clk 0:01:02.7]} 21.
Bc1 {[%clk 0:01:32]} 21... Qe7 {[%clk 0:00:55.4]} 22. Bxa6 {[%clk 0:01:27.4]}
22... Nbc4 {[%clk 0:00:48.6]} 23. Bxc4 {[%clk 0:01:25.4]} 23... Nxc4 {[%clk
0:00:49.3]} 24. Nd3 {[%clk 0:01:19.2]} 24... b6 {[%clk 0:00:44.1]} 25. Ne3
{[%clk 0:01:16]} 25... Nxe3 {[%clk 0:00:32.3]} 26. fxe3 {[%clk 0:01:12.4]} 26...
Ra8 {[%clk 0:00:26.5]} 27. Nb4 {[%clk 0:01:07.3]} 27... Qe8 {[%clk 0:00:22.2]}
28. Rf2 {[%clk 0:01:00.9]} 28... Bxb4 {[%clk 0:00:14.8]} 29. Rxb4 {[%clk
0:00:58.5]} 29... Ra1 {[%clk 0:00:15.3]} 30. Qb2 {[%clk 0:00:55.7]} 30... Ra6
{[%clk 0:00:15.7]} 31. c4 {[%clk 0:00:47.5]} 31... Bc6 {[%clk 0:00:14.3]} 32.
Rc2 {[%clk 0:00:30.1]} 32... Kb7 {[%clk 0:00:11.6]} 33. Qc3 {[%clk 0:00:25]}
33... Qd7 {[%clk 0:00:09.9]} 34. h3 {[%clk 0:00:20]} 34... dxc4 {[%clk
0:00:05.9]} 35. Rxc4 {[%clk 0:00:18.8]} 35... b5 {[%clk 0:00:06.5]} 36. Rc5
{[%clk 0:00:17.5]} 36... Rc8 {[%clk 0:00:05.6]} 37. e4 {[%clk 0:00:16.5]} 37...
Bxe4 {[%clk 0:00:03.5]} 38. Rxc8 {[%clk 0:00:13.5]} 38... Bxc2 {[%clk
0:00:04.1]} 39. Rc5 {[%clk 0:00:10.1]} 39... Ba4 {[%clk 0:00:03.1]} 40. d5
{[%clk 0:00:07.9]} 40... exd5 {[%clk 0:00:03]} 41. Be3 {[%clk 0:00:07.6]} 41...
Rc6 {[%clk 0:00:02.8]} 42. Kh2 {[%clk 0:00:04.8]} 42... Rxc5 {[%clk 0:00:03]}
43. Qxc5 {[%clk 0:00:04.3]} 43... d4 {[%clk 0:00:03.5]} 44. Bxd4 {[%clk
0:00:03.3]} 44... Qc7 {[%clk 0:00:04.1]} 45. Qa7+ {[%clk 0:00:03.1]} 45... Kc8
{[%clk 0:00:04.2]} 46. Qa8+ {[%clk 0:00:03.6]} 46... Kd7 {[%clk 0:00:04.7]} 47.
Qd5+ {[%clk 0:00:03.8]} 47... Ke7 {[%clk 0:00:05]} 48. Bc5+ {[%clk 0:00:03.3]}
48... Ke8 {[%clk 0:00:05.6]} 49. Bd6 {[%clk 0:00:02.4]} 49... Qc8 {[%clk
0:00:04.8]} 0-1

[Event "*** Titled Tuesday Blitz"]
[Site "Chess.com"]
[Date "2020.11.24"]
[Round "3"]
[White "Sergey85Rodchenkov"]
[Black "BJthechessgod"]
[Result "1-0"]
[WhiteElo "2447"]
[BlackElo "2231"]
[TimeControl "180+1"]
[EndTime "10:45:44 PST"]
[Termination "Sergey85Rodchenkov won on time"]

1. e4 {[%clk 0:03:00.9]} 1... c5 {[%clk 0:02:54.1]} 2. Nf3 {[%clk 0:03:00.3]}
2... Nc6 {[%clk 0:02:53.8]} 3. d4 {[%clk 0:03:00.4]} 3... cxd4 {[%clk
0:02:54.7]} 4. Nxd4 {[%clk 0:02:51.9]} 4... g6 {[%clk 0:02:54.7]} 5. Nc3 {[%clk
0:02:52.1]} 5... Bg7 {[%clk 0:02:54.6]} 6. Nb3 {[%clk 0:02:52.6]} 6... Nf6
{[%clk 0:02:51.6]} 7. Be2 {[%clk 0:02:52.5]} 7... O-O {[%clk 0:02:51.5]} 8. O-O
{[%clk 0:02:52.5]} 8... d6 {[%clk 0:02:49.3]} 9. Re1 {[%clk 0:02:52.1]} 9... Be6
{[%clk 0:02:39.8]} 10. Bg5 {[%clk 0:02:50.6]} 10... Qc8 {[%clk 0:02:35.9]} 11.
Qd2 {[%clk 0:02:38.7]} 11... Rd8 {[%clk 0:02:28.5]} 12. Rad1 {[%clk 0:02:37.9]}
12... d5 {[%clk 0:02:24.4]} 13. exd5 {[%clk 0:02:37.5]} 13... Nxd5 {[%clk
0:02:24.4]} 14. Nxd5 {[%clk 0:02:37.6]} 14... Rxd5 {[%clk 0:02:24.1]} 15. Qc1
{[%clk 0:02:37.4]} 15... Qd7 {[%clk 0:02:08.2]} 16. c4 {[%clk 0:02:29.5]} 16...
Rxd1 {[%clk 0:01:58.6]} 17. Rxd1 {[%clk 0:02:29]} 17... Qc7 {[%clk 0:01:59.1]}
18. Nc5 {[%clk 0:02:22.6]} 18... Bf5 {[%clk 0:01:52.4]} 19. Be3 {[%clk
0:01:54.8]} 19... Ne5 {[%clk 0:01:42.7]} 20. b3 {[%clk 0:01:43.7]} 20... b6
{[%clk 0:01:21.8]} 21. Nd3 {[%clk 0:01:36]} 21... Nxd3 {[%clk 0:01:07.1]} 22.
Bxd3 {[%clk 0:01:35.6]} 22... Bxd3 {[%clk 0:01:07.2]} 23. Rxd3 {[%clk
0:01:35.7]} 23... Rd8 {[%clk 0:01:07.8]} 24. Qd2 {[%clk 0:01:35.4]} 24... Rxd3
{[%clk 0:01:06.6]} 25. Qxd3 {[%clk 0:01:35.2]} 25... Qd6 {[%clk 0:01:04.6]} 26.
Qxd6 {[%clk 0:01:33.5]} 26... exd6 {[%clk 0:01:04.9]} 27. f3 {[%clk 0:01:32]}
27... Be5 {[%clk 0:01:04.5]} 28. h3 {[%clk 0:01:31]} 28... Kf8 {[%clk
0:01:02.1]} 29. Kf2 {[%clk 0:01:29.8]} 29... Ke7 {[%clk 0:01:00.3]} 30. Ke2
{[%clk 0:01:29.2]} 30... Kd7 {[%clk 0:00:59.4]} 31. Kd3 {[%clk 0:01:29.2]} 31...
Kc6 {[%clk 0:00:59.3]} 32. g4 {[%clk 0:01:26.1]} 32... f5 {[%clk 0:00:53.6]} 33.
a4 {[%clk 0:01:24.2]} 33... a6 {[%clk 0:00:48.2]} 34. gxf5 {[%clk 0:01:10.5]}
34... gxf5 {[%clk 0:00:47.8]} 35. Bd2 {[%clk 0:01:09.8]} 35... b5 {[%clk
0:00:43]} 36. cxb5+ {[%clk 0:01:08.8]} 36... axb5 {[%clk 0:00:42.6]} 37. Bb4
{[%clk 0:01:05.3]} 37... bxa4 {[%clk 0:00:41.3]} 38. bxa4 {[%clk 0:01:05.1]}
38... d5 {[%clk 0:00:42]} 39. Bc3 {[%clk 0:01:02.5]} 39... Bg3 {[%clk
0:00:27.6]} 40. Bd4 {[%clk 0:01:01.8]} 40... Bc7 {[%clk 0:00:25.5]} 41. Ke3
{[%clk 0:01:00.6]} 41... Kd6 {[%clk 0:00:22]} 42. Kf4 {[%clk 0:00:56.8]} 42...
Ke6+ {[%clk 0:00:22.4]} 43. Kg5 {[%clk 0:00:56]} 43... Be5 {[%clk 0:00:16.4]}
44. Bf2 {[%clk 0:00:51.7]} 44... d4 {[%clk 0:00:09.5]} 45. a5 {[%clk 0:00:51.8]}
45... d3 {[%clk 0:00:09.2]} 46. Be3 {[%clk 0:00:47.5]} 46... Bd4 {[%clk
0:00:04.6]} 47. Bd2 {[%clk 0:00:46.6]} 47... Ba7 {[%clk 0:00:05]} 48. f4 {[%clk
0:00:29.9]} 48... h6+ {[%clk 0:00:03.4]} 49. Kxh6 {[%clk 0:00:29.6]} 49... Kd5
{[%clk 0:00:03.9]} 50. Kg5 {[%clk 0:00:26.1]} 50... Ke4 {[%clk 0:00:04.5]} 51.
a6 {[%clk 0:00:18.5]} 51... Be3 {[%clk 0:00:02.8]} 52. Ba5 {[%clk 0:00:18.3]}
52... Bc5 {[%clk 0:00:01.1]} 53. h4 {[%clk 0:00:17]} 53... Ba7 {[%clk
0:00:01.7]} 54. h5 {[%clk 0:00:17]} 54... Kf3 {[%clk 0:00:02.2]} 55. h6 {[%clk
0:00:17.1]} 55... Be3 {[%clk 0:00:02.4]} 56. h7 {[%clk 0:00:16.7]} 56... Bxf4+
{[%clk 0:00:03.1]} 57. Kg6 {[%clk 0:00:16.2]} 57... Be5 {[%clk 0:00:02.5]} 58.
a7 {[%clk 0:00:13.3]} 58... Bc7 {[%clk 0:00:01.5]} 59. Bc3 {[%clk 0:00:11.8]}
1-0

[Event "*** Titled Tuesday Blitz"]
[Site "Chess.com"]
[Date "2020.11.24"]
[Round "3"]
[White "Sebastian"]
[Black "temus_galaktionov"]
[Result "1-0"]
[WhiteElo "2914"]
[BlackElo "2681"]
[TimeControl "180+1"]
[EndTime "10:45:45 PST"]
[Termination "Sebastian won on time"]

1. e4 {[%clk 0:03:00.9]} 1... c6 {[%clk 0:03:00.9]} 2. d4 {[%clk 0:03:00.5]}
2... g6 {[%clk 0:03:01.2]} 3. Nc3 {[%clk 0:02:59.5]} 3... Bg7 {[%clk 0:02:54.2]}
4. f4 {[%clk 0:02:58.7]} 4... d6 {[%clk 0:02:53.8]} 5. Nf3 {[%clk 0:02:57.8]}
5... Nd7 {[%clk 0:02:53.9]} 6. Be3 {[%clk 0:02:49.4]} 6... e5 {[%clk 0:02:53.2]}
7. Bc4 {[%clk 0:02:16.7]} 7... Ngf6 {[%clk 0:02:44.7]} 8. fxe5 {[%clk
0:01:40.1]} 8... dxe5 {[%clk 0:02:45.6]} 9. dxe5 {[%clk 0:01:34.5]} 9... Ng4
{[%clk 0:02:42.1]} 10. Bxf7+ {[%clk 0:01:16.8]} 10... Kxf7 {[%clk 0:01:49.5]}
11. Ng5+ {[%clk 0:01:16.1]} 11... Ke8 {[%clk 0:01:50.4]} 12. Qxg4 {[%clk
0:01:12.7]} 12... Nxe5 {[%clk 0:01:49]} 13. Qg3 {[%clk 0:01:11.2]} 13... Nc4
{[%clk 0:01:37.8]} 14. Rd1 {[%clk 0:00:59.8]} 14... Qe7 {[%clk 0:01:26.5]} 15.
O-O {[%clk 0:00:54.7]} 15... Nxb2 {[%clk 0:01:01.8]} 16. Rf7 {[%clk 0:00:38.3]}
16... Qe5 {[%clk 0:01:01.3]} 17. Rxg7 {[%clk 0:00:33.8]} 17... Qxg7 {[%clk
0:00:55]} 18. Bd4 {[%clk 0:00:31.3]} 18... Qe7 {[%clk 0:00:48.6]} 19. Bxh8
{[%clk 0:00:23.5]} 19... Nxd1 {[%clk 0:00:40.9]} 20. Nxd1 {[%clk 0:00:23.1]}
20... Be6 {[%clk 0:00:40.5]} 21. Ne3 {[%clk 0:00:15]} 21... Rd8 {[%clk 0:00:37]}
22. h3 {[%clk 0:00:12.1]} 22... Kd7 {[%clk 0:00:31.7]} 23. Bd4 {[%clk
0:00:11.3]} 23... b6 {[%clk 0:00:29.8]} 24. Qf4 {[%clk 0:00:06.8]} 24... Rf8
{[%clk 0:00:24.3]} 25. Qe5 {[%clk 0:00:06.9]} 25... h6 {[%clk 0:00:19.7]} 26.
Nf3 {[%clk 0:00:04.7]} 26... Bxa2 {[%clk 0:00:18.5]} 27. Qg3 {[%clk 0:00:04.1]}
27... Kc8 {[%clk 0:00:17.9]} 28. Be5 {[%clk 0:00:03.2]} 28... Qe6 {[%clk
0:00:13.8]} 29. Kh2 {[%clk 0:00:03]} 29... Kb7 {[%clk 0:00:13.7]} 30. Nd4 {[%clk
0:00:02.9]} 30... Qf7 {[%clk 0:00:12.5]} 31. Bd6 {[%clk 0:00:03.2]} 31... Rd8
{[%clk 0:00:12]} 32. e5 {[%clk 0:00:03.6]} 32... c5 {[%clk 0:00:11.5]} 33. Nf3
{[%clk 0:00:03.1]} 33... Be6 {[%clk 0:00:10.5]} 34. Qh4 {[%clk 0:00:03.1]} 34...
h5 {[%clk 0:00:09.5]} 35. Qxd8 {[%clk 0:00:02.6]} 35... Ka6 {[%clk 0:00:10.4]}
36. Qg5 {[%clk 0:00:01.8]} 36... c4 {[%clk 0:00:09.1]} 37. Qf6 {[%clk
0:00:02.4]} 37... Qd7 {[%clk 0:00:08.5]} 38. Nd4 {[%clk 0:00:03.1]} 38... Bg8
{[%clk 0:00:08.5]} 39. Qf4 {[%clk 0:00:03.5]} 39... b5 {[%clk 0:00:08]} 40. Qe4
{[%clk 0:00:03.8]} 40... Ka5 {[%clk 0:00:07.6]} 41. Bc5 {[%clk 0:00:04.3]} 41...
a6 {[%clk 0:00:07.1]} 42. Nc6+ {[%clk 0:00:04.9]} 42... Ka4 {[%clk 0:00:07.3]}
43. Qd4 {[%clk 0:00:05.3]} 43... Qxc6 {[%clk 0:00:06.8]} 44. Bd6 {[%clk
0:00:05.3]} 44... b4 {[%clk 0:00:06.2]} 45. Qa1+ {[%clk 0:00:04.9]} 45... Kb5
{[%clk 0:00:06.2]} 46. Qd4 {[%clk 0:00:05.6]} 46... a5 {[%clk 0:00:05.6]} 47.
Qa7 {[%clk 0:00:04.8]} 47... Be6 {[%clk 0:00:04.1]} 48. Qb8+ {[%clk 0:00:04.8]}
48... Ka4 {[%clk 0:00:05]} 49. Qa7 {[%clk 0:00:04.8]} 49... c3 {[%clk
0:00:04.9]} 50. Bc7 {[%clk 0:00:04.8]} 50... Qb5 {[%clk 0:00:04]} 51. Bd6 {[%clk
0:00:04.2]} 51... Ka3 {[%clk 0:00:03.7]} 52. Qd4 {[%clk 0:00:04.1]} 52... a4
{[%clk 0:00:03.3]} 53. Qxc3+ {[%clk 0:00:04.4]} 53... Ka2 {[%clk 0:00:03.2]} 54.
Bxb4 {[%clk 0:00:05]} 1-0

[Event "*** Titled Tuesday Blitz"]
[Site "Chess.com"]
[Date "2020.11.24"]
[Round "3"]
[White "Chessbard1972"]
[Black "esrosenberg"]
[Result "0-1"]
[WhiteElo "2337"]
[BlackElo "2146"]
[TimeControl "180+1"]
[EndTime "10:45:49 PST"]
[Termination "esrosenberg won by checkmate"]

1. d4 {[%clk 0:03:00.9]} 1... Nf6 {[%clk 0:02:59.9]} 2. Nf3 {[%clk 0:03:00.4]}
2... e6 {[%clk 0:03:00]} 3. c4 {[%clk 0:03:00.4]} 3... d5 {[%clk 0:03:00]} 4. g3
{[%clk 0:02:59.4]} 4... Be7 {[%clk 0:03:00.2]} 5. Bg2 {[%clk 0:02:59.5]} 5...
O-O {[%clk 0:03:00.9]} 6. O-O {[%clk 0:02:59.6]} 6... dxc4 {[%clk 0:03:01.5]} 7.
Qa4 {[%clk 0:02:55.7]} 7... a6 {[%clk 0:03:00.3]} 8. Qxc4 {[%clk 0:02:54.3]}
8... b5 {[%clk 0:03:00.6]} 9. Qc2 {[%clk 0:02:53.3]} 9... Bb7 {[%clk 0:03:01.3]}
10. Rd1 {[%clk 0:02:49.4]} 10... Nc6 {[%clk 0:02:36.2]} 11. a3 {[%clk
0:02:43.7]} 11... Na5 {[%clk 0:02:28.6]} 12. Bf4 {[%clk 0:02:36.4]} 12... Nc4
{[%clk 0:02:21.7]} 13. b3 {[%clk 0:02:32.5]} 13... Be4 {[%clk 0:02:16.8]} 14.
Qc3 {[%clk 0:02:30.8]} 14... Nd5 {[%clk 0:02:16.5]} 15. Qc1 {[%clk 0:02:25.4]}
15... Nxf4 {[%clk 0:02:11]} 16. gxf4 {[%clk 0:02:24.8]} 16... Nd6 {[%clk
0:02:03.4]} 17. Nc3 {[%clk 0:02:22.2]} 17... Bb7 {[%clk 0:01:55.9]} 18. e3
{[%clk 0:02:18.8]} 18... Ra7 {[%clk 0:01:52.9]} 19. Qc2 {[%clk 0:02:17.6]} 19...
Qa8 {[%clk 0:01:50.9]} 20. Ne1 {[%clk 0:02:14.4]} 20... Bxg2 {[%clk 0:01:47.7]}
21. Nxg2 {[%clk 0:02:14]} 21... f5 {[%clk 0:01:37.7]} 22. d5 {[%clk 0:02:05.3]}
22... Rf6 {[%clk 0:01:29.8]} 23. Kf1 {[%clk 0:01:57.9]} 23... Rg6 {[%clk
0:01:27.8]} 24. f3 {[%clk 0:01:52.2]} 24... Bf6 {[%clk 0:01:20.1]} 25. Rac1
{[%clk 0:01:49.1]} 25... Rh6 {[%clk 0:01:06.6]} 26. Ne1 {[%clk 0:01:41.7]} 26...
Bxc3 {[%clk 0:01:00.3]} 27. Qxc3 {[%clk 0:01:41.3]} 27... Rxh2 {[%clk 0:01:01]}
28. dxe6 {[%clk 0:01:34.3]} 28... Qe8 {[%clk 0:00:26.5]} 29. Qe5 {[%clk
0:01:02.7]} 29... Qh5 {[%clk 0:00:22.8]} 30. Rc2 {[%clk 0:00:45.4]} 30... Qh3+
{[%clk 0:00:18.9]} 31. Rg2 {[%clk 0:00:43.4]} 31... Rxg2 {[%clk 0:00:13.2]} 32.
Nxg2 {[%clk 0:00:42.8]} 32... Qxf3+ {[%clk 0:00:13.9]} 33. Ke1 {[%clk
0:00:42.4]} 33... Qxg2 {[%clk 0:00:08.3]} 34. e7 {[%clk 0:00:41.9]} 34... Qg1+
{[%clk 0:00:07.3]} 35. Ke2 {[%clk 0:00:36.6]} 35... Qg2+ {[%clk 0:00:06.4]} 36.
Ke1 {[%clk 0:00:31.9]} 36... Ra8 {[%clk 0:00:05.8]} 37. Qe6+ {[%clk 0:00:25.3]}
37... Kh8 {[%clk 0:00:05.6]} 38. Rxd6 {[%clk 0:00:24]} 38... Qg1+ {[%clk
0:00:04.7]} 39. Kd2 {[%clk 0:00:21.3]} 39... Qf2+ {[%clk 0:00:03.6]} 40. Kd3
{[%clk 0:00:13.1]} 40... Qf1+ {[%clk 0:00:03.5]} 41. Kc3 {[%clk 0:00:11.3]}
41... Qc1+ {[%clk 0:00:03.4]} 42. Kd4 {[%clk 0:00:04.9]} 42... Qd2+ {[%clk
0:00:03.3]} 43. Ke5 {[%clk 0:00:04.9]} 43... Qxd6+ {[%clk 0:00:03.2]} 44. Qxd6
{[%clk 0:00:03.2]} 44... cxd6+ {[%clk 0:00:04.1]} 45. Kxd6 {[%clk 0:00:03.6]}
45... h5 {[%clk 0:00:04.7]} 46. Kd7 {[%clk 0:00:02.6]} 46... h4 {[%clk
0:00:05.3]} 47. e8=Q+ {[%clk 0:00:02]} 47... Rxe8 {[%clk 0:00:05.6]} 48. Kxe8
{[%clk 0:00:02.3]} 48... h3 {[%clk 0:00:06.5]} 49. Kd7 {[%clk 0:00:03]} 49... h2
{[%clk 0:00:07.4]} 50. Ke6 {[%clk 0:00:03.8]} 50... h1=Q {[%clk 0:00:08.3]} 51.
Kxf5 {[%clk 0:00:04.7]} 51... Qf3 {[%clk 0:00:08.8]} 52. e4 {[%clk 0:00:05.6]}
52... Qxb3 {[%clk 0:00:09.1]} 53. Ke5 {[%clk 0:00:06.5]} 53... Qxa3 {[%clk
0:00:09.6]} 54. f5 {[%clk 0:00:07.4]} 54... Qe7+ {[%clk 0:00:10]} 55. Kd5 {[%clk
0:00:07.1]} 55... b4 {[%clk 0:00:10.4]} 56. e5 {[%clk 0:00:08]} 56... b3 {[%clk
0:00:11]} 57. e6 {[%clk 0:00:08.9]} 57... b2 {[%clk 0:00:11.5]} 58. f6 {[%clk
0:00:09.8]} 58... gxf6 {[%clk 0:00:11.5]} 59. Ke4 {[%clk 0:00:08.2]} 59... Qxe6+
{[%clk 0:00:11.9]} 60. Kd4 {[%clk 0:00:08.2]} 60... Qe5+ {[%clk 0:00:12.2]} 61.
Kd3 {[%clk 0:00:08.7]} 61... b1=Q+ {[%clk 0:00:11.9]} 62. Kd2 {[%clk 0:00:09.6]}
62... Qbb2+ {[%clk 0:00:11.3]} 63. Kd3 {[%clk 0:00:09.4]} 63... Qed4# {[%clk
0:00:11]} 0-1

[Event "*** Titled Tuesday Blitz"]
[Site "Chess.com"]
[Date "2020.11.24"]
[Round "3"]
[White "FMJoseHerrera"]
[Black "esapunov"]
[Result "0-1"]
[WhiteElo "2587"]
[BlackElo "2800"]
[TimeControl "180+1"]
[EndTime "10:45:54 PST"]
[Termination "esapunov won on time"]

1. Nf3 {[%clk 0:03:00.9]} 1... Nf6 {[%clk 0:02:59.6]} 2. g3 {[%clk 0:03:01.8]}
2... g6 {[%clk 0:02:59.9]} 3. Bg2 {[%clk 0:03:00.8]} 3... Bg7 {[%clk 0:03:00.5]}
4. d3 {[%clk 0:03:00.4]} 4... O-O {[%clk 0:03:00.6]} 5. Nc3 {[%clk 0:03:00.6]}
5... d6 {[%clk 0:03:01.2]} 6. h4 {[%clk 0:03:01.2]} 6... c5 {[%clk 0:02:54.9]}
7. h5 {[%clk 0:03:01.5]} 7... Nxh5 {[%clk 0:02:54.7]} 8. Bg5 {[%clk 0:03:01.6]}
8... Nc6 {[%clk 0:02:46.8]} 9. Qd2 {[%clk 0:03:00.5]} 9... f5 {[%clk 0:02:43.7]}
10. Bh6 {[%clk 0:02:59.4]} 10... e6 {[%clk 0:02:35.5]} 11. Bxg7 {[%clk
0:02:56.9]} 11... Kxg7 {[%clk 0:02:35]} 12. O-O-O {[%clk 0:02:56.3]} 12... d5
{[%clk 0:02:31]} 13. Rh4 {[%clk 0:02:21.4]} 13... d4 {[%clk 0:02:24.6]} 14. Nb1
{[%clk 0:02:21]} 14... e5 {[%clk 0:02:03.2]} 15. Na3 {[%clk 0:02:17.4]} 15...
Be6 {[%clk 0:01:51.8]} 16. Rdh1 {[%clk 0:02:15]} 16... h6 {[%clk 0:01:50.9]} 17.
Nb5 {[%clk 0:01:37.4]} 17... a6 {[%clk 0:01:42.4]} 18. Rxh5 {[%clk 0:01:36.6]}
18... gxh5 {[%clk 0:01:41.1]} 19. Rxh5 {[%clk 0:01:37.5]} 19... Rf6 {[%clk
0:01:39.5]} 20. Na3 {[%clk 0:01:30.2]} 20... Bf7 {[%clk 0:01:38.4]} 21. Rh1
{[%clk 0:01:27.5]} 21... Qe7 {[%clk 0:01:14.7]} 22. Nh4 {[%clk 0:01:21.3]} 22...
Rh8 {[%clk 0:01:12.5]} 23. Bxc6 {[%clk 0:01:08.1]} 23... bxc6 {[%clk 0:01:10]}
24. b3 {[%clk 0:01:04.3]} 24... Qd6 {[%clk 0:01:00.7]} 25. f3 {[%clk 0:00:56.2]}
25... e4 {[%clk 0:00:52]} 26. g4 {[%clk 0:00:50.3]} 26... fxg4 {[%clk
0:00:47.4]} 27. dxe4 {[%clk 0:00:44.3]} 27... Bg6 {[%clk 0:00:43.9]} 28. Rg1
{[%clk 0:00:35.7]} 28... gxf3 {[%clk 0:00:40.2]} 29. Rxg6+ {[%clk 0:00:33.7]}
29... Kf7 {[%clk 0:00:37.5]} 30. Rxf6+ {[%clk 0:00:20.4]} 30... Qxf6 {[%clk
0:00:37.1]} 31. Nxf3 {[%clk 0:00:21.1]} 31... h5 {[%clk 0:00:33.5]} 32. e5
{[%clk 0:00:21.5]} 32... Qh6 {[%clk 0:00:33.3]} 33. Ng5+ {[%clk 0:00:19.1]}
33... Kg6 {[%clk 0:00:33]} 34. Nh3 {[%clk 0:00:17.2]} 34... Kf5 {[%clk
0:00:28.5]} 35. Nc4 {[%clk 0:00:15.4]} 35... Qxd2+ {[%clk 0:00:26.9]} 36. Kxd2
{[%clk 0:00:16.3]} 36... h4 {[%clk 0:00:26.4]} 37. Nd6+ {[%clk 0:00:15.2]} 37...
Kg4 {[%clk 0:00:26.3]} 38. Nf7 {[%clk 0:00:14.2]} 38... Re8 {[%clk 0:00:21.4]}
39. Nf2+ {[%clk 0:00:11.9]} 39... Kg3 {[%clk 0:00:20.4]} 40. Ne4+ {[%clk
0:00:11.5]} 40... Kf4 {[%clk 0:00:20.8]} 41. Nf6 {[%clk 0:00:10.2]} 41... Re7
{[%clk 0:00:20.2]} 42. Nd8 {[%clk 0:00:04.7]} 42... h3 {[%clk 0:00:19.7]} 43.
Nxc6 {[%clk 0:00:04.8]} 43... Re6 {[%clk 0:00:19.6]} 44. Nd5+ {[%clk 0:00:05.5]}
44... Kg3 {[%clk 0:00:18.5]} 45. Nd8 {[%clk 0:00:04.4]} 45... Rxe5 {[%clk
0:00:18.2]} 46. Nf6 {[%clk 0:00:04.6]} 46... h2 {[%clk 0:00:18.1]} 47. Nc6
{[%clk 0:00:05.4]} 47... Re6 {[%clk 0:00:17.8]} 48. Nh5+ {[%clk 0:00:05]} 48...
Kf2 {[%clk 0:00:17.2]} 49. Nf4 {[%clk 0:00:03.9]} 49... Rxc6 {[%clk 0:00:17.1]}
50. b4 {[%clk 0:00:03.8]} 50... h1=Q {[%clk 0:00:16.9]} 51. Kd3 {[%clk
0:00:04.7]} 51... Qd1+ {[%clk 0:00:15.2]} 52. Kc4 {[%clk 0:00:04.4]} 52... Qxc2+
{[%clk 0:00:15]} 53. Kd5 {[%clk 0:00:04.6]} 53... Rc8 {[%clk 0:00:14.6]} 54.
Nd3+ {[%clk 0:00:05.5]} 54... Kf1 {[%clk 0:00:14.3]} 55. bxc5 {[%clk 0:00:06.4]}
55... Qxa2+ {[%clk 0:00:14.1]} 56. Kd6 {[%clk 0:00:06.5]} 56... Qxe2 {[%clk
0:00:14.2]} 57. Nb4 {[%clk 0:00:06.8]} 57... Qb5 {[%clk 0:00:13.9]} 58. c6
{[%clk 0:00:06.3]} 58... Qxb4+ {[%clk 0:00:14.1]} 59. Kd7 {[%clk 0:00:06.2]}
59... Qb8 {[%clk 0:00:13.4]} 60. Ke6 {[%clk 0:00:05.5]} 60... Qc7 {[%clk
0:00:13.3]} 61. Kd5 {[%clk 0:00:05]} 61... d3 {[%clk 0:00:13.6]} 0-1